bitfinex-derivatives/quotes_ETHF0:USTF0_20210406
["timestamp","ask_amount","ask_price","bid_price","bid_amount"]
[1617725420860,4.90695,2092.6,2091.0,2.0]
[1617725421061,7.31635,2092.6,2091.0,2.0]
[1617725421362,8.41635,2092.6,2091.1,5.97]
[1617725421962,8.41635,2092.6,2091.2,2.0]
[1617725422361,8.41635,2092.6,2092.3,2.90695]
[1617725422362,5.5094,2092.6,2092.3,2.90695]
[1617725422561,2.0,2092.6,2092.3,2.90695]
[1617725422763,2.0,2092.6,2092.4,5.76]
[1617725424363,2.90695,2092.5,2092.4,5.76]
[1617725424564,2.90695,2092.5,2092.4,3.4968]
[1617725426367,2.90695,2092.5,2092.4,3.2986]
[1617725427170,2.90695,2092.5,2092.4,2.9181]
[1617725427573,2.90695,2092.5,2092.4,1.6996]
[1617725428768,2.90695,2092.5,2092.4,1.6496]
[1617725431172,2.90695,2092.5,2092.4,3.7593]
[1617725432176,2.0,2092.6,2092.4,3.7593]
[1617725434676,2.0,2092.6,2092.4,3.7493]
[1617725435779,2.0,2092.6,2092.4,1.6396]
[1617725437280,2.0,2092.6,2090.8,2.0]
[1617725437483,4.8447,2092.6,2090.8,2.0]
[1617725438083,4.8447,2092.6,2090.9,5.73]
[1617725438484,4.8447,2092.6,2092.3,2.90695]
[1617725438681,4.8447,2092.6,2092.3,2.02735]
[1617725438882,4.8447,2092.6,2090.8,2.0]
[1617725439283,12.9662,2092.5,2090.8,2.0]
[1617725439685,12.9662,2092.5,2090.9,5.75]
[1617725440486,12.9662,2092.5,2092.4,2.90695]
[1617725440885,12.9662,2092.5,2092.4,3.22695]
[1617725442890,2.0,2092.6,2092.4,3.22695]
[1617725443889,2.0,2092.6,2092.4,2.94775]
[1617725444089,2.0,2092.6,2092.4,2.03355]
[1617725444288,4.00695,2093.2,2092.4,2.03355]
[1617725444289,4.00695,2093.2,2092.4,1.78375]
[1617725444490,13.04,2094.1,2093.0,2.90695]
[1617725444890,14.14,2094.1,2093.1,5.86]
[1617725445090,13.04,2094.1,2093.1,5.86]
[1617725445692,15.04,2094.1,2093.1,5.86]
[1617725446092,16.14,2094.1,2093.1,5.86]
[1617725446494,2.90695,2093.2,2093.1,5.86]
[1617725447093,2.90695,2093.2,2093.1,4.4569]
[1617725447293,2.90695,2093.2,2091.9,5.87]
[1617725447693,2.90695,2093.2,2091.1,2.0]
[1617725448095,2.90695,2093.2,2092.0,5.97]
[1617725448295,2.90695,2093.2,2091.2,5.91]
[1617725448495,4.0734,2093.3,2091.1,2.0]
[1617725448695,4.0734,2093.3,2092.1,5.94]
[1617725448895,4.0734,2093.3,2091.2,5.87]
[1617725449096,4.0734,2093.3,2090.3,2.0]
[1617725449296,4.0734,2093.3,2092.2,5.88]
[1617725449496,34.0734,2093.3,2091.2,5.82]
[1617725449696,35.1734,2093.3,2090.4,2.91]
[1617725449897,35.1734,2093.3,2092.3,5.87]
[1617725450097,35.1734,2093.3,2091.3,6.01]
[1617725450298,35.1734,2093.3,2090.6,0.49]
[1617725450497,35.1734,2093.3,2091.4,2.90695]
[1617725450699,35.1734,2093.3,2091.4,8.83695]
[1617725450901,35.1734,2093.3,2091.4,2.90695]
[1617725451202,35.1734,2093.3,2091.5,5.95]
[1617725452101,5.1734,2093.3,2091.5,5.95]
[1617725452301,3.1,2093.3,2091.5,5.95]
[1617725452502,1.1,2093.3,2092.4,2.90695]
[1617725452901,1.1,2093.3,2092.5,5.98]
[1617725454403,1.1,2093.3,2092.5,5.2672]
[1617725454603,2.90695,2092.6,2092.5,5.2672]
[1617725454803,3.87565,2092.6,2092.5,5.2672]
[1617725455004,3.87565,2092.6,2092.5,4.785]
[1617725455405,2.90695,2092.6,2092.5,4.785]
[1617725456006,2.90695,2092.6,2092.5,3.8122]
[1617725456204,2.90695,2092.6,2092.5,3.1993]
[1617725456404,3.87405,2092.6,2092.5,3.1993]
[1617725457009,0.9671,2092.6,2092.5,3.1993]
[1617725458408,3.3753,2092.6,2092.5,3.1993]
[1617725458609,6.28225,2092.6,2092.5,1.2959]
[1617725458807,6.28225,2092.6,2089.8,2.0]
[1617725459010,6.28225,2092.6,2089.9,2.0]
[1617725459209,13.2645,2092.5,2089.9,2.0]
[1617725459411,13.2645,2092.5,2090.0,5.8]
[1617725459610,13.2645,2092.5,2090.1,2.0]
[1617725460011,13.2645,2092.5,2090.2,5.88]
[1617725460211,13.2645,2092.5,2090.3,2.0]
[1617725460611,13.2645,2092.5,2092.2,2.90695]
[1617725460811,13.2645,2092.5,2092.2,3.86155]
[1617725461013,13.2645,2092.5,2092.3,5.97]
[1617725461612,13.2645,2092.5,2092.3,5.1444]
[1617725461812,13.2645,2092.5,2092.3,3.6258]
[1617725462011,13.2645,2092.5,2090.6,5.83]
[1617725462213,13.2645,2092.5,2090.7,2.0]
[1617725462613,13.2645,2092.5,2091.5,2.90695]
[1617725463012,13.2645,2092.5,2091.6,5.8]
[1617725464614,2.90695,2091.7,2091.6,5.8]
[1617725464814,3.87315,2091.7,2091.6,5.8]
[1617725465614,2.90695,2091.7,2091.6,5.8]
[1617725466617,3.85695,2091.7,2091.6,5.8]
[1617725467419,2.90695,2091.7,2091.6,5.8]
[1617725468417,3.87735,2091.7,2091.6,5.8]
[1617725469018,0.9704,2091.7,2091.6,5.8]
[1617725470420,0.9671,2092.6,2091.6,5.8]
[1617725470619,0.9671,2092.6,2091.9,2.90695]
[1617725471020,0.9671,2092.6,2092.0,5.74]
[1617725471719,0.9671,2092.6,2092.0,5.5285]
[1617725472520,0.9671,2092.6,2092.0,3.1337]
[1617725472721,2.90695,2092.1,2092.0,3.1337]
[1617725472921,5.66445,2092.1,2092.0,2.3948]
[1617725473120,5.66445,2092.1,2092.0,1.3085]
[1617725474821,5.66445,2092.1,2092.0,0.348]
[1617725475222,5.66445,2092.1,2091.7,2.08685]
[1617725475625,5.66445,2092.1,2092.0,5.76]
[1617725475823,5.66445,2092.1,2091.8,5.84]
[1617725476023,5.66445,2092.1,2091.7,2.08685]
[1617725476225,5.66445,2092.1,2092.0,4.5441]
[1617725476423,5.66445,2092.1,2091.8,5.9]
[1617725476624,5.66445,2092.1,2091.7,1.90675]
[1617725476823,5.66445,2092.1,2092.0,5.0931]
[1617725477023,5.66445,2092.1,2091.8,5.96]
[1617725477224,5.66445,2092.1,2091.7,1.90675]
[1617725477424,5.66445,2092.1,2092.0,5.97]
[1617725477624,5.66445,2092.1,2091.8,6.02]
[1617725477824,5.66445,2092.1,2091.7,0.94075]
[1617725478224,5.66445,2092.1,2091.9,5.84]
[1617725478424,5.66445,2092.1,2091.8,5.95]
[1617725478624,5.66445,2092.1,2091.7,0.94075]
[1617725478825,5.66445,2092.1,2092.0,6.0]
[1617725479027,5.66445,2092.1,2091.8,5.85]
[1617725479226,5.66445,2092.1,2092.0,6.02]
[1617725479625,5.66445,2092.1,2091.8,5.93]
[1617725479825,5.66445,2092.1,2092.0,5.76]
[1617725480026,5.66445,2092.1,2092.0,4.1651]
[1617725480226,5.66445,2092.1,2091.9,6.01]
[1617725480426,5.66445,2092.1,2091.8,2.53]
[1617725480634,5.66445,2092.1,2092.0,2.8873]
[1617725480828,5.66445,2092.1,2091.8,5.98]
[1617725481028,5.66445,2092.1,2092.0,6.0]
[1617725481428,5.66445,2092.1,2091.8,6.0]
[1617725481830,5.66445,2092.1,2092.0,5.81]
[1617725482028,5.66445,2092.1,2091.8,5.86]
[1617725482428,5.66445,2092.1,2092.0,4.6168]
[1617725482629,5.66445,2092.1,2091.7,0.94075]
[1617725482630,5.66445,2092.1,2091.8,4.7651]
[1617725482829,5.66445,2092.1,2091.8,3.833]
[1617725483030,5.66445,2092.1,2092.0,6.02]
[1617725483230,5.66445,2092.1,2091.9,5.8108]
[1617725483431,5.66445,2092.1,2091.9,5.421]
[1617725483630,5.66445,2092.1,2090.6,2.0]
[1617725483830,30.0,2092.0,2090.6,2.0]
[1617725484231,32.0,2092.0,2089.1,4.889302]
[1617725484434,30.0,2092.0,2090.7,5.93]
[1617725484631,30.0,2092.0,2089.3,5.99]
[1617725484833,30.0,2092.0,2090.6,2.90695]
[1617725485033,30.0,2092.0,2090.8,4.5457]
[1617725485232,30.0,2092.0,2090.6,3.86975]
[1617725485233,30.0,2092.0,2090.7,2.9049]
[1617725485434,30.0,2092.0,2090.9,5.99]
[1617725485638,32.0,2092.0,2090.9,5.99]
[1617725485837,30.0,2092.0,2090.7,5.85]
[1617725486236,2.7575,2092.1,2091.0,2.2479]
[1617725486436,2.7575,2092.1,2090.6,2.90695]
[1617725486437,30.0,2092.1,2090.7,6.01]
[1617725486636,32.4174,2092.1,2091.1,6.02]
[1617725486836,2.90695,2091.2,2091.1,6.02]
[1617725487038,6.32005,2091.2,2090.7,5.86]
[1617725487236,6.32005,2091.2,2091.1,5.96]
[1617725487436,6.32005,2091.2,2091.1,4.5358]
[1617725487636,6.32005,2091.2,2090.8,5.97]
[1617725488037,6.32005,2091.2,2091.1,5.6496]
[1617725488237,6.32005,2091.2,2090.9,5.78]
[1617725488638,6.32005,2091.2,2091.1,5.95]
[1617725488837,6.32005,2091.2,2091.0,5.78]
[1617725489038,6.32005,2091.2,2091.0,4.4582]
[1617725489238,6.32005,2091.2,2091.1,5.79]
[1617725489438,6.32005,2091.2,2089.9,2.0]
[1617725489841,6.32005,2091.2,2088.7,4.88925666]
[1617725490039,6.32005,2091.2,2088.7,6.88925666]
[1617725490240,8.32005,2091.2,2090.0,5.94]
[1617725490444,6.32005,2091.2,2089.0,2.0]
[1617725490839,3.4131,2091.2,2090.1,8.33695]
[1617725491040,3.4131,2091.2,2090.1,2.90695]
[1617725491240,33.4131,2091.2,2090.1,2.90695]
[1617725491439,33.4131,2091.2,2090.2,5.89]
[1617725491841,2.0,2091.1,2090.2,5.89]
[1617725492040,3.4131,2091.2,2089.4,6.01]
[1617725492240,3.4131,2091.2,2089.2,4.92407679]
[1617725492241,3.4131,2091.2,2090.3,5.88]
[1617725492439,0.9454,2091.2,2090.3,5.88]
[1617725492640,0.9454,2091.2,2089.6,2.6813]
[1617725492839,2.90695,2090.7,2090.5,2.90695]
[1617725493242,0.9454,2091.2,2090.6,5.99]
[1617725494847,0.9454,2091.2,2090.8,2.90695]
[1617725495248,0.9454,2091.2,2090.9,5.92]
[1617725495646,0.9454,2091.2,2090.9,5.2064]
[1617725496750,2.90695,2091.0,2090.9,5.2064]
[1617725496950,2.90695,2091.0,2090.9,4.5004]
[1617725497951,2.90695,2091.0,2090.9,3.8096]
[1617725498152,2.90695,2091.0,2090.9,3.6186]
[1617725502955,2.90695,2091.0,2090.9,2.202]
[1617725503157,2.90695,2091.0,2090.9,1.4898]
[1617725503756,5.12395,2091.0,2090.9,1.4898]
[1617725504458,5.12395,2091.0,2090.9,0.7026]
[1617725504657,5.12395,2091.0,2090.6,1.49415]
[1617725504857,2.90695,2090.7,2090.6,1.49415]
[1617725505258,2.90695,2090.7,2090.6,7.50415]
[1617725512665,2.90695,2090.7,2090.6,6.01]
[1617725513065,2.90695,2090.7,2090.3,2.90695]
[1617725513266,2.90695,2090.7,2090.4,5.77]
[1617725513466,2.90695,2090.7,2090.6,6.02]
[1617725513665,2.90695,2090.7,2090.4,2.1052]
[1617725513865,2.90695,2090.7,2090.5,5.76]
[1617725514065,2.90695,2090.7,2090.6,5.78]
[1617725514466,2.90695,2090.7,2090.4,2.1052]
[1617725514665,2.90695,2090.7,2090.5,5.91]
[1617725514867,2.90695,2090.7,2090.6,8.73695]
[1617725515066,2.90695,2090.7,2090.6,2.90695]
[1617725515466,2.90695,2090.7,2090.6,8.87695]
[1617725519574,2.90695,2090.7,2090.6,9.84245]
[1617725519777,2.90695,2090.7,2090.6,8.87695]
[1617725525980,2.90695,2090.7,2090.6,9.82125]
[1617725526180,2.90695,2090.7,2090.6,8.87695]
[1617725528685,2.90695,2090.7,2090.6,11.76295]
[1617725529086,2.90695,2091.2,2090.6,11.76295]
[1617725529686,2.90695,2091.2,2090.7,2.0]
[1617725530087,2.90695,2091.2,2090.8,6.01]
[1617725530287,58.572,2091.5,2090.9,2.0]
[1617725530489,14.2205,2091.7,2090.9,2.0]
[1617725530689,2.0671,2092.6,2091.0,5.98]
[1617725531089,0.9671,2092.6,2091.8,2.90695]
[1617725531288,0.9671,2092.6,2091.8,5.20815]
[1617725531489,0.9671,2092.6,2091.9,5.81]
[1617725533089,2.90695,2092.0,2091.9,5.81]
[1617725533293,2.90695,2092.0,2091.9,7.81]
[1617725533892,1.1,2093.5,2091.9,7.81]
[1617725534693,1.1,2093.8,2091.9,7.81]
[1617725536391,14.1059,2094.0,2091.9,7.81]
[1617725537095,13.0059,2094.0,2093.5,2.90695]
[1617725537293,13.0059,2094.0,2093.5,5.48605]
[1617725537494,13.0059,2094.0,2093.6,5.78]
[1617725539094,2.90695,2093.7,2093.6,5.78]
[1617725539498,2.90695,2093.7,2093.6,4.8714]
[1617725539900,2.90695,2093.7,2093.6,2.0275]
[1617725540103,2.90695,2093.7,2093.6,1.3292]
[1617725540300,2.90695,2093.7,2093.6,0.3068]
[1617725542798,2.90695,2093.7,2091.8,2.0]
[1617725542999,13.0059,2094.0,2093.5,2.90695]
[1617725543201,13.0059,2094.0,2093.6,5.95]
[1617725543398,13.0059,2094.0,2093.5,2.90695]
[1617725543800,13.0059,2094.0,2093.6,5.86]
[1617725545098,13.0059,2094.0,2093.8,2.90695]
[1617725545498,13.0059,2094.0,2093.9,5.88]
[1617725546500,13.9575,2094.0,2093.9,5.88]
[1617725546705,13.0059,2094.0,2093.9,5.88]
[1617725547206,15.91285,2094.0,2093.9,5.4055]
[1617725547417,15.91285,2094.0,2093.7,5.81]
[1617725547604,15.91285,2094.0,2093.1,3.37]
[1617725547805,16.86205,2094.0,2093.9,5.49]
[1617725548004,16.86205,2094.0,2093.8,5.87]
[1617725548204,16.86205,2094.0,2093.2,5.95]
[1617725548405,16.86205,2094.0,2093.9,5.48]
[1617725548605,16.86205,2094.0,2093.3,5.77]
[1617725548809,17.96205,2094.0,2093.3,5.77]
[1617725549005,17.96205,2094.0,2092.1,2.0]
[1617725549206,2.90695,2093.4,2093.0,2.90695]
[1617725549605,2.90695,2093.4,2093.1,5.74]
[1617725550405,2.90695,2093.4,2093.1,6.6991]
[1617725550606,2.90695,2093.4,2093.1,5.74]
[1617725551205,2.90695,2093.4,2093.3,2.90695]
[1617725551707,2.90695,2093.4,2093.3,8.78695]
[1617725555111,2.90695,2093.7,2093.3,8.78695]
[1617725557217,2.90695,2093.7,2093.6,2.90695]
[1617725557619,2.90695,2093.7,2093.6,8.82695]
[1617725558720,2.90695,2093.7,2093.6,5.92]
[1617725559120,2.90695,2093.7,2093.5,2.90695]
[1617725559519,2.90695,2093.7,2093.6,5.82]
[1617725559720,2.90695,2093.7,2092.2,2.0]
[1617725560019,2.90695,2093.7,2093.6,5.9]
[1617725560419,2.90695,2093.7,2093.0,2.6972]
[1617725560621,2.90695,2093.7,2093.6,5.76]
[1617725561019,2.90695,2093.7,2093.0,2.6972]
[1617725561219,14.1059,2094.0,2093.6,5.97]
[1617725561419,14.1059,2094.0,2093.6,8.2573]
[1617725561619,14.1059,2094.0,2093.6,2.2873]
[1617725561822,13.0059,2094.0,2093.7,6.0]
[1617725562620,13.0059,2094.0,2093.7,5.3008]
[1617725562820,13.0059,2094.0,2092.1,4.6695]
[1617725562821,13.0059,2094.0,2093.1,5.92]
[1617725563220,13.0059,2094.0,2093.8,6.0]
[1617725563420,14.1059,2094.0,2093.4,2.90695]
[1617725563620,14.1059,2094.0,2093.5,3.29]
[1617725563820,14.1059,2094.0,2093.9,5.76]
[1617725564020,14.1059,2094.0,2093.4,2.90695]
[1617725564220,14.1059,2094.0,2093.6,5.87]
[1617725564621,14.1059,2094.0,2093.4,2.90695]
[1617725564820,14.1059,2094.0,2093.6,5.76]
[1617725565021,14.1059,2094.0,2093.5,5.85]
[1617725565220,2.90695,2093.6,2093.5,5.85]
[1617725566022,5.72745,2093.6,2093.5,5.85]
[1617725566220,5.72745,2093.6,2093.5,4.8834]
[1617725566422,5.72745,2093.6,2092.4,5.82]
[1617725566821,6.82745,2093.6,2093.5,0.03]
[1617725567022,6.82745,2093.6,2091.8,2.0]
[1617725567023,6.82745,2093.6,2092.5,5.94]
[1617725567220,2.8205,2093.6,2093.2,2.90695]
[1617725567424,2.8205,2093.6,2093.5,5.77]
[1617725567620,2.8205,2093.6,2093.3,0.05]
[1617725568021,2.8205,2093.6,2093.5,5.75]
[1617725568222,2.8205,2093.6,2093.3,6.02]
[1617725568622,2.8205,2093.6,2093.5,5.81]
[1617725568821,2.8205,2093.6,2093.4,5.85]
[1617725569221,2.8205,2093.6,2093.5,5.8]
[1617725569421,2.8205,2093.6,2092.8,2.90695]
[1617725569623,15.8435,2093.9,2092.9,5.82]
[1617725569822,15.8435,2093.9,2093.5,5.81]
[1617725570022,15.8435,2093.9,2092.8,2.90695]
[1617725570223,13.8435,2093.9,2092.9,5.99]
[1617725570424,13.8435,2093.9,2093.6,5.74]
[1617725570625,13.8435,2093.9,2092.8,2.90695]
[1617725570825,12.7435,2093.9,2092.9,5.86]
[1617725571026,12.7435,2093.9,2093.7,5.87]
[1617725571226,2.90695,2093.8,2093.4,2.90695]
[1617725571625,2.90695,2093.8,2093.5,5.84]
[1617725573226,2.90695,2093.8,2093.7,2.90695]
[1617725573627,2.90695,2093.8,2093.7,8.85695]
[1617725575229,2.90695,2093.8,2093.7,11.73195]
[1617725587944,0.9674,2094.2,2093.7,11.73195]
[1617725588145,14.1402,2095.0,2093.7,11.73195]
[1617725588946,1.1,2095.0,2093.7,10.73195]
[1617725589147,1.1,2095.0,2093.7,12.73195]
[1617725589346,1.1,2095.0,2094.7,2.90695]
[1617725589547,1.1,2095.0,2094.7,5.71935]
[1617725589748,1.1,2095.0,2094.8,5.72]
[1617725590346,1.1,2095.0,2094.3,6.01]
[1617725590547,3.2481,2095.0,2093.8,5.88]
[1617725590746,3.2481,2095.0,2094.9,5.95]
[1617725590946,3.2481,2095.0,2094.4,5.75]
[1617725591147,3.2481,2095.0,2093.9,5.96]
[1617725591347,3.2481,2095.0,2094.9,5.68]
[1617725591546,3.2481,2095.0,2094.5,5.99]
[1617725591745,3.2481,2095.0,2094.1,0.09]
[1617725591946,3.2481,2095.0,2094.9,5.8]
[1617725592147,3.2481,2095.0,2094.6,5.87]
[1617725592347,3.2481,2095.0,2094.2,5.85]
[1617725592547,3.2481,2095.0,2094.9,5.97]
[1617725592749,3.2481,2095.0,2094.1,3.15]
[1617725592948,3.2481,2095.0,2094.3,5.98]
[1617725593147,3.2481,2095.0,2094.9,5.9]
[1617725593349,6.15505,2095.0,2094.1,5.9]
[1617725593547,6.15505,2095.0,2094.4,5.75]
[1617725593949,6.15505,2095.0,2094.2,5.82]
[1617725594149,6.15505,2095.0,2094.5,5.52]
[1617725594549,6.15505,2095.0,2092.9,2.0]
[1617725594550,6.15505,2095.0,2094.3,5.91]
[1617725594749,6.15505,2095.0,2094.6,5.87]
[1617725594949,13.8187,2094.9,2093.8,5.74]
[1617725595151,14.9187,2094.9,2094.4,5.82]
[1617725595351,14.9187,2094.9,2094.7,5.85]
[1617725595550,15.2995,2094.8,2093.9,6.0]
[1617725595750,16.3995,2094.8,2094.5,5.91]
[1617725595950,16.3995,2094.8,2093.2,2.90695]
[1617725596351,16.3995,2094.8,2094.6,5.99]
[1617725596551,16.3995,2094.8,2093.2,2.90695]
[1617725596952,16.3995,2094.8,2094.7,5.82]
[1617725597152,16.3995,2094.8,2093.3,5.99]
[1617725597350,16.3995,2094.8,2093.5,2.90695]
[1617725597553,16.3995,2094.8,2094.7,5.73]
[1617725597752,16.3995,2094.8,2093.5,2.90695]
[1617725597955,16.3995,2094.8,2093.6,0.24]
[1617725598153,16.3995,2094.8,2094.7,5.99]
[1617725598353,16.3995,2094.8,2093.5,2.90695]
[1617725598554,18.5841,2094.8,2093.7,5.82]
[1617725598756,18.5841,2094.8,2094.7,5.95]
[1617725598955,18.5841,2094.8,2093.6,5.73]
[1617725599358,2.90695,2093.7,2093.2,2.90695]
[1617725599555,5.69075,2093.7,2093.2,2.90695]
[1617725599756,5.69075,2093.7,2093.6,5.77]
[1617725599957,5.69075,2093.7,2093.3,5.99]
[1617725600158,5.69075,2093.7,2093.2,2.90695]
[1617725600360,5.69075,2093.7,2093.6,5.76]
[1617725600562,5.69075,2093.7,2093.3,5.99]
[1617725600762,6.79075,2093.7,2091.6,2.0]
[1617725600961,6.79075,2093.7,2093.6,5.73]
[1617725601162,6.79075,2093.7,2093.4,5.89]
[1617725601363,6.79075,2093.7,2092.6,2.90695]
[1617725601763,6.79075,2093.7,2092.7,6.01]
[1617725602164,2.0,2093.6,2092.7,6.01]
[1617725602365,3.1,2093.6,2092.7,6.01]
[1617725603365,2.90695,2092.8,2092.7,6.01]
[1617725603565,5.74895,2092.8,2092.7,6.01]
[1617725603765,4.78655,2092.8,2092.7,6.01]
[1617725605573,6.78655,2092.8,2092.7,6.01]
[1617725605769,7.74905,2092.8,2092.7,6.01]
[1617725605969,7.74905,2092.8,2090.7,5.97]
[1617725606168,7.88655,2092.8,2090.7,5.97]
[1617725606368,7.88655,2092.8,2092.7,5.78]
[1617725606569,7.88655,2092.8,2090.8,5.77]
[1617725606968,7.88655,2092.8,2092.7,5.92]
[1617725607173,7.88655,2092.8,2090.9,5.79]
[1617725607570,4.9796,2092.8,2092.7,5.76]
[1617725607770,4.9796,2092.8,2091.8,2.90695]
[1617725607970,4.9796,2092.8,2091.9,0.49]
[1617725608172,4.9796,2092.8,2092.7,4.58]
[1617725608371,4.9796,2092.8,2091.8,2.90695]
[1617725608571,4.9796,2092.8,2092.0,5.89]
[1617725608771,4.9796,2092.8,2092.7,6.02]
[1617725608971,4.9796,2092.8,2091.8,2.90695]
[1617725609172,4.9796,2092.8,2092.0,5.83]
[1617725609371,4.9796,2092.8,2092.7,5.81]
[1617725609773,1.1,2092.8,2092.1,8.90695]
[1617725609975,76.1808,2092.9,2092.7,5.9]
[1617725610173,2.0,2093.6,2092.7,5.9]
[1617725610375,2.0,2093.6,2092.2,5.96]
[1617725610574,4.3832,2093.6,2092.8,5.82]
[1617725610775,5.4832,2093.6,2092.8,5.82]
[1617725610977,5.4832,2093.6,2092.2,5.77]
[1617725611175,5.4832,2093.6,2092.9,5.99]
[1617725611575,2.90695,2093.0,2092.2,5.8]
[1617725611777,5.88905,2093.0,2092.2,5.8]
[1617725611981,5.88905,2093.0,2092.1,2.90695]
[1617725612176,5.88905,2093.0,2092.3,5.79]
[1617725612377,5.88905,2093.0,2092.2,6.01]
[1617725612777,5.88905,2093.0,2092.4,5.82]
[1617725612976,5.88905,2093.0,2092.2,5.85]
[1617725613378,5.88905,2093.0,2092.5,5.8]
[1617725613579,2.90695,2092.6,2092.2,5.94]
[1617725613776,3.85665,2092.6,2092.2,5.94]
[1617725613977,3.85665,2092.6,2092.1,2.90695]
[1617725614177,3.85665,2092.6,2092.3,5.83]
[1617725614575,2.90695,2092.6,2092.2,5.96]
[1617725614776,2.90695,2092.6,2092.1,2.90695]
[1617725615076,2.90695,2092.6,2092.4,5.99]
[1617725615276,2.90695,2092.6,2092.2,5.92]
[1617725615477,2.90695,2092.3,2092.1,2.90695]
[1617725615677,0.9659,2092.8,2092.2,6.0]
[1617725616479,1.1,2093.6,2092.2,6.0]
[1617725616679,3.1,2093.6,2092.2,6.0]
[1617725617580,3.1,2093.6,2092.7,2.90695]
[1617725617982,3.1,2093.6,2092.8,5.87]
[1617725618784,1.1,2093.6,2092.8,5.87]
[1617725618984,14.7284,2093.7,2092.8,5.87]
[1617725619384,13.6284,2093.7,2092.8,5.87]
[1617725619585,13.6284,2093.7,2093.5,2.90695]
[1617725619785,13.6284,2093.7,2093.5,4.73485]
[1617725619986,13.6284,2093.7,2093.6,5.77]
[1617725620387,13.6284,2093.7,2093.6,3.1555]
[1617725620589,13.6284,2093.7,2093.0,5.94]
[1617725620991,13.6284,2093.7,2093.6,5.93]
[1617725621193,13.6284,2093.7,2092.4,2.3115]
[1617725621194,13.6284,2093.7,2093.0,5.73]
[1617725621592,13.6284,2093.7,2093.6,5.76]
[1617725621789,13.6284,2093.7,2093.2,2.90695]
[1617725621990,13.6284,2093.7,2093.3,0.04]
[1617725622191,13.6284,2093.7,2093.6,5.83]
[1617725622391,13.6284,2093.7,2093.2,2.90695]
[1617725622591,13.6284,2093.7,2093.4,5.9]
[1617725622794,13.6284,2093.7,2093.6,5.74]
[1617725622995,13.6284,2093.7,2093.3,5.73]
[1617725623196,13.6284,2093.7,2093.5,5.92]
[1617725623394,13.6284,2093.7,2093.6,5.79]
[1617725623595,13.6284,2093.7,2093.3,5.97]
[1617725623596,16.53535,2093.7,2093.3,5.97]
[1617725623798,16.53535,2093.7,2092.9,2.90695]
[1617725623996,16.53535,2093.7,2093.6,5.83]
[1617725624199,16.53535,2093.7,2093.4,5.74]
[1617725624396,16.53535,2093.7,2092.9,2.90695]
[1617725624596,16.53535,2093.7,2093.6,5.85]
[1617725624796,17.63535,2093.7,2093.5,5.72]
[1617725624999,17.63535,2093.7,2092.9,2.90695]
[1617725625198,16.53535,2093.7,2093.2,5.75]
[1617725625396,16.53535,2093.7,2093.6,5.9]
[1617725625596,16.53535,2093.7,2092.9,2.90695]
[1617725625796,16.53535,2093.7,2093.3,5.75]
[1617725625996,16.53535,2093.7,2093.6,5.75]
[1617725626197,16.53535,2093.7,2093.1,2.86]
[1617725626398,16.53535,2093.7,2093.4,5.86]
[1617725626598,16.53535,2093.7,2093.6,5.62]
[1617725626798,16.53535,2093.7,2093.6,2.2323]
[1617725627197,16.53535,2093.7,2093.6,8.0223]
[1617725631810,16.53535,2093.7,2093.6,7.2972]
[1617725632008,18.89555,2093.7,2093.6,6.8217]
[1617725632206,18.89555,2093.7,2093.6,5.79]
[1617725632606,18.89555,2093.7,2093.2,5.8]
[1617725633010,18.89555,2093.7,2093.6,5.97]
[1617725633209,18.89555,2093.7,2093.2,5.82]
[1617725633609,15.9886,2093.7,2093.6,5.81]
[1617725633809,13.6284,2093.7,2093.6,5.81]
[1617725634009,13.6284,2093.7,2093.5,2.90695]
[1617725634212,13.6284,2093.7,2093.6,5.78]
[1617725635609,16.53535,2093.7,2093.6,5.78]
[1617725641315,2.90695,2093.7,2093.6,5.78]
[1617725643321,4.88925,2093.7,2093.6,5.78]
[1617725646322,4.88925,2093.7,2092.2,5.78]
[1617725646521,4.88925,2093.7,2092.3,2.0]
[1617725646723,4.88925,2093.7,2093.6,5.94]
[1617725646925,4.88925,2093.7,2092.4,6.0]
[1617725647129,4.88925,2093.7,2092.4,8.0]
[1617725647324,4.88925,2093.7,2093.6,5.85]
[1617725647525,4.88925,2093.7,2092.5,5.75]
[1617725647725,2.90695,2092.8,2092.5,8.65695]
[1617725647926,5.40455,2092.8,2092.5,2.90695]
[1617725648125,5.40455,2092.8,2092.6,5.84]
[1617725648926,1.1,2093.7,2092.6,5.84]
[1617725649326,13.527,2094.0,2092.6,5.84]
[1617725649530,1.1,2093.7,2092.6,5.84]
[1617725649728,2.6275,2093.8,2093.2,2.90695]